bitfinex/quotes_SOLUSD_20260309
["timestamp","ask_amount","ask_price","bid_price","bid_amount"]
[1773063661402,1.35342341,84.924,84.88,11.41125985]
[1773063661605,1.35342341,84.924,84.9,11.41125985]
[1773063662522,11.77054906,84.958,84.911,0.28432314]
[1773063662725,11.77054906,84.958,84.94,11.41125985]
[1773063663036,1e-08,84.978,84.954,0.54232675]
[1773063663208,11.41125985,85.0,84.951,0.28432314]
[1773063663412,11.41125985,84.99,84.95,11.41125985]
[1773063663929,11.41125985,84.98,84.94,11.41125985]
[1773063664313,11.7689981,84.969,84.93,11.41125985]
[1773063664723,41.19149336,84.969,84.93,11.41125985]
[1773063664926,1.35581533,84.968,84.93,11.41125985]
[1773063665435,1.35581533,84.959,84.93,11.41125985]
[1773063666021,1.35581533,84.959,84.94,11.41125985]
[1773063666615,13.12633723,84.958,84.93,11.41125985]
[1773063666934,1.35581533,84.956,84.87,0.02165714]
[1773063667226,41.19682666,84.958,84.87,0.02165714]
[1773063667227,1.35581533,84.929,84.89,11.41125985]
[1773063667427,1.35581533,84.929,84.87,41.23954282]
[1773063667632,1.35581533,84.929,84.9,11.41125985]
[1773063668623,13.13049505,84.928,84.9,11.41125985]
[1773063668819,1.35581533,84.927,84.9,11.41125985]
[1773063669024,1.35581533,84.927,84.89,11.41125985]
[1773063669718,1.35581533,84.927,84.875,0.28432314]
[1773063669719,1.35581533,84.919,84.875,3.69383402]
[1773063669916,1.35581533,84.919,84.88,11.41125985]
[1773063670438,1.35581533,84.899,84.86,11.41125985]
[1773063670729,1.64013847,84.879,84.793,53.0]
[1773063670916,1.35581533,84.879,84.85,11.41125985]
[1773063671707,0.28432314,84.897,84.86,11.41125985]
[1773063671920,1.35581533,84.896,84.86,11.41125985]
[1773063672416,1.35581533,84.869,84.821,11.78953325]
[1773063672626,1.35581533,84.867,84.83,11.41125985]
[1773063672815,1.35581533,84.867,84.825,11.78886914]
[1773063672816,1.35581533,84.867,84.84,11.41125985]
[1773063673221,30.80978531,84.879,84.85,11.41125985]
[1773063673417,1.35581533,84.889,84.828,3.69383402]
[1773063673627,1.35581533,84.879,84.84,11.41125985]
[1773063673832,1.35581533,84.879,84.828,3.69383402]
[1773063674039,1.35581533,84.879,84.84,11.41125985]
[1773063674236,1.35581533,84.869,84.83,11.41125985]
[1773063674446,41.22982683,84.89,84.85,11.41125985]
[1773063674628,1.35581533,84.887,84.85,11.41125985]
[1773063675023,1.35581533,84.887,84.86,11.41125985]
[1773063675224,1.35581533,84.887,84.85,11.41125985]
[1773063676425,1.35581533,84.887,84.84,11.41125985]
[1773063676623,1.35581533,84.887,84.832,41.25801583]
[1773063676624,1.35581533,84.887,84.85,11.41125985]
[1773063676919,1.35581533,84.885,84.85,23.19671654]
[1773063677235,1.35581533,84.885,84.791,0.05838104]
[1773063677236,1.35581533,84.879,84.791,0.05838104]
[1773063677438,182.59783706,84.886,84.791,0.05838104]
[1773063677439,11.41125985,84.82,84.792,11.79356543]
[1773063677636,1.2501991,84.829,84.792,42.54326204]
[1773063678144,1.2501991,84.829,84.792,11.79356543]
[1773063678325,1.2501991,84.829,84.792,41.277479]
[1773063679045,11.78856038,84.828,84.793,0.28432314]
[1773063679247,1.2501991,84.827,84.792,11.79356543]
[1773063679544,1.2501991,84.809,84.77,11.51125985]
[1773063679742,11.41125985,84.81,84.77,52.79944003]
[1773063679938,1.2501991,84.809,84.77,52.79944003]
[1773063680123,1.2501991,84.809,84.771,1.26578304]
[1773063680743,11.41125985,84.81,84.773,1.26578304]
[1773063680952,11.79060813,84.814,84.78,12.67704289]
[1773063681248,11.41125985,84.81,84.78,12.67704289]
[1773063681449,1.2501991,84.81,84.772,11.79634785]
[1773063681629,1.2501991,84.809,84.772,11.79634785]
[1773063682328,1.2501991,84.799,84.771,11.796487]
[1773063682536,1.2501991,84.799,84.77,0.1]
[1773063682732,1.2501991,84.797,84.77,0.1]
[1773063683441,1.2501991,84.789,84.77,0.1]
[1773063683840,1.2501991,84.779,84.74,11.41125985]
[1773063684143,1.2501991,84.779,84.75,11.41125985]
[1773063684352,1.2501991,84.779,84.741,41.30232118]
[1773063684888,1.2501991,84.779,84.72,0.1]
[1773063684889,11.79829632,84.758,84.723,11.80317033]
[1773063685147,1.2501991,84.757,84.723,41.31109615]
[1773063685353,1.2501991,84.757,84.723,11.80317033]
[1773063685547,1.2501991,84.757,84.73,11.41125985]
[1773063685848,11.41125985,84.77,84.74,11.41125985]
[1773063685849,1.2501991,84.77,84.74,11.41125985]
[1773063686040,11.79484589,84.783,84.75,11.41125985]
[1773063686432,1.2501991,84.786,84.76,11.41125985]
[1773063686637,11.79453912,84.785,84.751,1.26578304]
[1773063686838,11.79453912,84.785,84.752,11.79913158]
[1773063687031,1.2501991,84.799,84.76,11.41125985]
[1773063687354,1.2501991,84.798,84.76,11.41125985]
[1773063688552,1.2501991,84.798,84.753,0.28432314]
[1773063688553,1.2501991,84.798,84.77,11.41125985]
[1773063688962,1.2501991,84.812,84.78,11.41125985]
[1773063689142,11.79092334,84.811,84.78,11.41125985]
[1773063689337,11.79092334,84.811,84.772,1.26578304]
[1773063689338,11.41125985,84.81,84.772,1.26578304]
[1773063689542,11.79092334,84.811,84.78,11.41125985]
[1773063690060,1.2501991,84.828,84.8,11.41125985]
[1773063690958,1.2501991,84.839,84.81,11.41125985]
[1773063691261,0.58924788,84.85,84.83,11.41125985]
[1773063691459,0.58924788,84.85,84.805,0.28432314]
[1773063691460,1.2501991,84.879,84.85,11.41125985]
[1773063691658,1.2501991,84.895,84.87,11.41125985]
[1773063691960,7.28679693,84.889,84.87,11.41125985]
[1773063692167,1.2501991,84.908,84.87,11.41125985]
[1773063692763,11.61125985,84.91,84.849,4.95961706]
[1773063692764,0.2,84.91,84.89,11.41125985]
[1773063692980,0.2,84.91,84.891,11.77981175]
[1773063693267,1.38346717,84.956,84.901,1.27541402]
[1773063693471,1.38346717,84.956,84.92,11.41125985]
[1773063693472,13.1543823,84.956,84.92,11.41125985]
[1773063693648,13.1543823,84.956,84.901,1.27541402]
[1773063693649,12.79472702,84.95,84.91,11.41125985]
[1773063693838,12.79472702,84.95,84.901,1.27541402]
[1773063693839,1.38346717,84.949,84.92,11.41125985]
[1773063694446,1.38346717,84.949,84.93,11.41125985]
[1773063694840,11.77087967,84.956,84.93,11.41125985]
[1773063695037,1.38346717,84.959,84.921,11.77565031]
[1773063695242,3.69383402,84.992,84.921,11.77565031]
[1773063695243,1.38346717,84.971,84.94,11.41125985]
[1773063695442,1.38346717,84.971,84.915,47.10560908]
[1773063695443,1.38346717,84.949,84.91,11.41125985]
[1773063695841,1.38346717,84.939,84.889,11.78008929]
[1773063696042,1.38346717,84.929,84.9,11.41125985]
[1773063696258,1.38346717,84.929,84.89,0.28432314]
[1773063696259,11.41125985,84.95,84.91,11.41125985]
[1773063696456,1.38346717,84.951,84.92,11.41125985]
[1773063696653,1.38346717,84.939,84.9,11.41125985]
[1773063696865,11.41125985,84.95,84.91,11.41125985]
[1773063697049,1.38346717,84.952,84.921,11.77565031]
[1773063697246,1.38346717,84.949,84.91,11.41125985]
[1773063697562,1.38346717,84.949,84.897,1.27541402]
[1773063697563,1.38346717,84.949,84.92,11.41125985]
[1773063697767,1.38346717,84.949,84.911,11.77703713]
[1773063699359,1.38346717,84.947,84.91,11.41125985]
[1773063699663,1.38346717,84.939,84.884,1.27541402]
[1773063699842,1.38346717,84.919,84.88,11.41125985]
[1773063701049,11.77606632,84.918,84.881,11.78119956]
[1773063701250,1.38346717,84.917,84.881,11.78119956]
[1773063701762,1.38346717,84.917,84.89,11.41125985]
[1773063701950,1.38346717,84.917,84.881,11.78119956]
[1773063702354,1.38346717,84.929,84.89,11.41125985]
[1773063702554,1.38346717,84.938,84.91,11.41125985]
[1773063702948,1.38346717,84.938,84.9,11.41125985]
[1773063703166,11.41125985,84.93,84.89,11.41125985]
[1773063703354,1.38346717,84.929,84.89,11.41125985]
[1773063703552,1.38346717,84.929,84.89,11.41621644]
[1773063703752,1.38346717,84.909,84.87,11.41621644]
[1773063703952,1.38346717,84.899,84.86,11.41621644]
[1773063704474,11.41621644,84.88,84.846,11.78605944]
[1773063704773,11.41621644,84.88,84.834,29.46919344]
[1773063704774,1.38346717,84.869,84.83,11.41621644]
[1773063704950,1.38346717,84.869,84.84,11.41621644]
[1773063705146,1.38346717,84.878,84.84,11.41621644]
[1773063705351,1.38346717,84.869,84.837,11.78730449]
[1773063705575,1.38346717,84.869,84.831,11.78804064]
[1773063705766,1.38346717,84.869,84.818,1.27541402]
[1773063705767,1.38346717,84.859,84.82,23.20588868]
[1773063705957,1.38346717,84.859,84.83,11.41621644]
[1773063706872,1.38346717,84.869,84.84,11.41621644]
[1773063707071,11.78147716,84.879,84.84,11.41621644]
[1773063707274,13.16633252,84.869,84.831,12.07246662]
[1773063707475,1.38346717,84.868,84.84,11.41621644]
[1773063708859,11.78314303,84.867,84.84,11.41621644]
[1773063709162,11.78314303,84.867,84.84,23.20309389]
[1773063709554,1.38346717,84.868,84.84,23.20309389]
[1773063709756,1.38346717,84.868,84.812,1.33488062]
[1773063709955,1.31741056,84.859,84.82,11.41621644]
[1773063710164,1.31741056,84.849,84.814,0.14216157]
[1773063710380,1.31741056,84.849,84.814,0.28432314]
[1773063710567,1.31741056,84.849,84.82,11.41621644]
[1773063710764,1.31741056,84.849,84.81,11.41621644]
[1773063710981,1.31741056,84.839,84.803,11.79203565]
[1773063711193,1.31741056,84.839,84.804,0.28432314]
[1773063711780,41.25023571,84.848,84.793,11.79342634]
[1773063711781,1.31741056,84.829,84.793,11.79342634]
[1773063711976,1.31741056,84.829,84.79,11.41621644]
[1773063712172,11.41621644,84.83,84.79,11.41621644]
[1773063712173,1.31741056,84.819,84.79,11.41621644]
[1773063712563,1.31741056,84.836,84.8,11.41621644]
[1773063712769,1.31741056,84.829,84.8,11.41621644]
[1773063713085,1.31741056,84.829,84.801,11.79231376]
[1773063713086,11.78856038,84.828,84.801,11.79231376]
[1773063713282,12.733627,84.84,84.802,1.33488062]
[1773063713485,11.78729804,84.838,84.81,11.41621644]
[1773063713685,1.31741056,84.84,84.81,11.41621644]
[1773063713980,47.1107271,84.907,84.82,11.41621644]
[1773063713981,1.31741056,84.858,84.82,11.41621644]
[1773063714362,11.78425387,84.859,84.83,11.41621644]
[1773063714585,11.78425387,84.859,84.81,11.41621644]
[1773063714586,1.31741056,84.849,84.81,11.41621644]
[1773063714768,1.31741056,84.849,84.82,11.41621644]
[1773063714970,1.31741056,84.849,84.821,11.78953325]
[1773063715178,1.31741056,84.859,84.821,11.78953325]
[1773063715371,1.31741056,84.862,84.83,11.41621644]
[1773063716470,11.78416107,84.86,84.831,11.78814348]
[1773063717186,7.2805206,84.879,84.851,1.33488062]
[1773063717406,1.31741056,84.892,84.86,11.41621644]
[1773063717576,1.31741056,84.89,84.86,11.41621644]
[1773063717772,1.31741056,84.879,84.84,11.41621644]
[1773063718086,1.31741056,84.869,84.832,0.28432314]
[1773063718284,1.31741056,84.869,84.83,11.41621644]
[1773063718489,11.78300419,84.868,84.83,23.20446905]
[1773063718690,1.31741056,84.867,84.83,23.20446905]
[1773063719069,1.31741056,84.867,84.83,52.67517516]
[1773063719485,1.31741056,84.867,84.831,0.28432314]
[1773063719794,1.31741056,84.867,84.84,11.41621644]
[1773063720284,1.31741056,84.867,84.83,23.20446905]
[1773063720789,47.11561646,84.898,84.83,23.20446905]
[1773063720790,11.41621644,84.89,84.85,11.41621644]
[1773063721084,11.41621644,84.89,84.83,100.20037095]
[1773063721085,1.31741056,84.898,84.86,11.41621644]
[1773063721287,1.31741056,84.889,84.85,11.41621644]
[1773063721587,1.31741056,84.889,84.86,11.41621644]
[1773063721770,1.31741056,84.889,84.85,11.41621644]
[1773063722436,11.41621644,84.86,84.797,1.33488062]
[1773063722602,11.41621644,84.86,84.796,41.27553186]
[1773063722603,11.78286535,84.869,84.84,11.41621644]
[1773063722898,1.31741056,84.868,84.831,11.78814348]
[1773063723290,1.37570578,84.859,84.828,11.78849926]
[1773063723672,1.37570578,84.859,84.83,11.41621644]
[1773063724193,1.37570578,84.873,84.84,11.41621644]
[1773063724389,11.78244886,84.872,84.84,11.41621644]
[1773063724588,11.78286535,84.869,84.84,11.41621644]
[1773063724792,11.78286535,84.869,84.839,11.7869889]
[1773063724793,13.15857113,84.869,84.839,11.7869889]
[1773063724982,1.37570578,84.868,84.84,11.41621644]
[1773063725183,1.37570578,84.868,84.839,11.7869889]
[1773063725400,1.37570578,84.868,84.84,11.41621644]
[1773063725598,1.37570578,84.868,84.839,11.7869889]
[1773063725896,1.37570578,84.859,84.827,11.78866038]
[1773063726112,1.37570578,84.859,84.83,11.41621644]
[1773063726392,1.37570578,84.868,84.83,11.41621644]
[1773063726991,11.41621644,84.86,84.83,11.41621644]
[1773063727189,1.37570578,84.859,84.817,29.47497257]
[1773063727403,1.37570578,84.859,84.82,11.41621644]
[1773063727979,1.37570578,84.849,84.811,0.14216157]
[1773063728285,1.37570578,84.849,84.811,0.28432314]
[1773063728594,1.37570578,84.859,84.82,11.41621644]
[1773063729294,1.37570578,84.857,84.821,11.78953325]
[1773063729492,11.78314303,84.867,84.83,11.41621644]
[1773063729677,1.37570578,84.88,84.85,11.41621644]
[1773063729879,12.79192222,84.88,84.85,11.41621644]
[1773063730104,1.37570578,84.879,84.841,1.61077523]
[1773063730298,1.37570578,84.879,84.85,11.41621644]
[1773063731089,1.37570578,84.877,84.841,11.78675404]
[1773063731286,1.37570578,84.877,84.85,11.41621644]
[1773063733101,1.37570578,84.9,84.87,11.41621644]
[1773063733293,11.7795619,84.893,84.86,11.41621644]
[1773063733503,1.37570578,84.9,84.87,11.41621644]
[1773063734198,11.77907695,84.897,84.87,11.41621644]
[1773063734406,1.37570578,84.9,84.87,11.41621644]
[1773063735316,1.37570578,84.9,84.86,11.41621644]
[1773063735317,1.37570578,84.886,84.86,11.41621644]
[1773063735802,1.37570578,84.919,84.88,11.41621644]
[1773063736002,1.37570578,84.918,84.88,11.41621644]
[1773063736392,1.37570578,84.918,84.89,11.41621644]
[1773063736593,11.77541097,84.923,84.89,11.41621644]
[1773063736895,11.77541097,84.923,84.879,1.32645209]
[1773063736896,11.77437443,84.931,84.91,11.41621644]
[1773063737295,11.77329346,84.938,84.911,11.77703713]
[1773063737603,1.37570578,84.937,84.901,1.46861366]
[1773063737788,1.37570578,84.937,84.903,0.28432314]
[1773063738100,41.20652711,84.938,84.891,12.06413489]
[1773063738101,1.37570578,84.929,84.891,12.06413489]
[1773063738908,1.37570578,84.929,84.9,11.41621644]
[1773063739295,11.77467972,84.928,84.901,11.77842428]
[1773063739722,11.77329346,84.938,84.902,1.61077523]
[1773063739886,19.04814905,84.943,84.92,11.41621644]
[1773063740086,7.27545465,84.943,84.92,11.41621644]
[1773063740286,29.42538243,84.961,84.93,11.41621644]
[1773063740287,1.37570578,84.961,84.93,11.41621644]
[1773063740598,1.37570578,84.959,84.921,1.61077523]
[1773063740801,1.37570578,84.959,84.93,11.41621644]
[1773063741001,11.77010726,84.961,84.94,11.41621644]
[1773063741308,11.77010726,84.961,84.93,11.41621644]
[1773063741515,1.37570578,84.968,84.93,11.41621644]
[1773063743106,13.14340532,84.979,84.94,12.74266853]
[1773063743308,13.14340532,84.979,84.95,11.41621644]
[1773063743512,1.37570578,84.979,84.95,23.18774385]
[1773063744633,1e-08,84.98,84.97,11.41621644]
[1773063744933,1e-08,84.98,84.961,1.61077523]
[1773063745290,1e-08,84.98,84.97,11.41621644]
[1773063745491,1e-08,84.98,84.971,11.76872109]
[1773063746714,1e-08,84.98,84.939,3.69383402]
[1773063746715,1.37570578,84.979,84.941,0.28432314]
[1773063746892,1.37570578,84.979,84.95,11.41621644]
[1773063747492,11.76775165,84.978,84.951,11.7714918]
[1773063747723,1.37570578,84.979,84.951,11.7714918]
[1773063747889,11.76775165,84.978,84.951,11.7714918]
[1773063748092,11.76775165,84.978,84.93,11.77440244]
[1773063748093,1.37570578,84.977,84.93,11.77440244]
[1773063748288,1.37570578,84.969,84.93,23.19061888]
[1773063748727,12.79192223,84.98,84.941,1.46861366]
[1773063748925,12.79192223,84.98,84.95,11.41621644]
[1773063748926,1.37570579,84.98,84.95,11.41621644]
[1773063749236,13.14318927,84.98,84.95,11.41621644]
[1773063749417,11.76429067,85.003,84.971,1.32645209]
[1773063749733,1.37570578,85.002,84.972,11.76858259]
[1773063750112,1.37570578,85.002,84.98,11.41621644]
[1773063750307,1.37570578,85.002,84.97,11.41621644]
[1773063750529,1.37570578,84.999,84.962,0.28432314]
[1773063750709,11.76429067,85.003,84.97,11.41621644]
[1773063750911,11.76429067,85.003,84.98,11.41621644]
[1773063751532,11.76265664,85.015,84.99,11.41621644]
[1773063751814,11.61621644,85.02,84.99,11.41621644]
[1773063752016,6.66053722,85.004,84.99,11.41621644]
[1773063752221,11.76220062,85.019,84.99,11.41621644]
[1773063752824,1e-08,85.02,85.01,11.41621644]
[1773063753435,1.40789766,85.029,84.99,0.8464359]
[1773063753636,1.40789766,85.028,84.98,11.41621644]
[1773063753813,1.40789766,85.028,84.99,11.41621644]
[1773063754414,1.40789766,85.028,84.987,0.8464359]
[1773063754415,1.40789766,85.028,85.0,11.41621644]
[1773063754633,0.2,85.03,85.0,11.41621644]
[1773063754815,11.76069341,85.029,85.0,11.41621644]
[1773063755016,1.40789766,85.028,84.99,11.41621644]
[1773063755536,41.16242693,85.029,84.957,11.77065759]
[1773063755537,1.40789766,84.997,84.957,11.77065759]
[1773063755721,1.40789766,84.997,84.952,11.77129482]
[1773063755918,1.40789766,84.997,84.96,23.18644041]
[1773063756234,47.02995374,85.053,84.96,23.18644041]
[1773063756235,11.76424386,85.004,84.98,11.41621644]
[1773063756440,1.40789766,85.003,84.98,11.41621644]
[1773063756637,3.69383402,85.035,84.96,41.19583602]
[1773063756638,1.40789766,85.031,84.992,0.85145039]
[1773063756841,11.76069341,85.029,85.01,11.41621644]
[1773063757244,1.40789766,85.031,85.01,11.41621644]
[1773063757545,1.40789766,85.053,85.021,11.76180002]
[1773063757741,1.40789766,85.053,85.02,11.41621644]
[1773063758044,1.40789766,85.053,85.03,11.41621644]
[1773063758249,1.40789766,85.053,85.02,11.41621644]
[1773063758539,1.40789766,85.039,85.0,11.41621644]
[1773063759326,1.40789766,85.039,84.987,29.41595651]
[1773063759327,1.40789766,85.053,85.02,11.41621644]
[1773063759526,58.77252616,85.074,85.01,11.41621644]
[1773063759527,1.40789766,85.047,85.01,11.41621644]
[1773063760121,1.40789766,85.047,85.02,11.41621644]
[1773063760926,1.40789766,85.047,85.01,11.41621644]
[1773063761340,1.40789766,85.047,85.02,11.41621644]
[1773063761843,11.75834254,85.046,85.011,29.40795897]
[1773063762026,11.75834254,85.046,85.02,11.41621644]
[1773063762346,1.40789766,85.045,85.02,11.41621644]
[1773063762841,1.40789766,85.045,85.01,11.41621644]
[1773063763229,1.40789766,85.039,85.0,11.41621644]
[1773063763638,1.40789766,85.039,85.0,11.38765532]
[1773063763833,1.40789766,85.039,84.992,11.76569803]
[1773063763834,1.40789766,85.037,85.01,11.38765532]
[1773063764037,1.40789766,85.037,85.0,11.38765532]
[1773063764424,1.40789766,85.029,84.99,11.38765532]
[1773063764730,1.48929729,85.029,84.99,11.38765532]
[1773063765232,1.48929729,85.029,85.0,11.38765532]
[1773063765529,1.48929729,85.029,84.99,11.38765532]
[1773063765724,1.48929729,85.029,85.0,11.38765532]
[1773063765929,0.28432314,85.052,85.0,11.38765532]
[1773063765930,1.48929729,85.027,85.0,11.38765532]
[1773063768242,11.76110836,85.026,84.995,29.41322221]
[1773063768446,1.48929729,85.025,85.0,11.38765532]
[1773063769150,1.48929729,85.025,84.99,11.38765532]
[1773063769929,1.48929729,85.025,85.0,11.38765532]
[1773063770128,1.48929729,85.025,84.99,11.38765532]
[1773063770343,1.48929729,85.025,84.989,11.76622857]
[1773063770344,1.48929729,85.036,85.0,11.38765532]
[1773063770533,1.48929729,85.036,84.991,41.46515404]
[1773063770534,1.48929729,85.029,84.991,12.05027482]
[1773063770842,1.48929729,85.029,85.0,11.38765532]
[1773063771232,1.48929729,85.029,85.01,11.38765532]
[1773063771425,1.48929729,85.029,85.0,11.38765532]
[1773063771638,1.48929729,85.019,84.98,11.38765532]
[1773063771851,1.48929729,85.019,84.981,0.28432314]
[1773063772154,1.48929729,85.019,84.99,11.38765532]
[1773063772646,11.76221506,85.018,84.991,11.76595168]
[1773063772846,1.48929729,85.009,84.963,0.87668001]
[1773063773046,1.48929729,85.009,84.98,11.38765532]
[1773063773346,1.48929729,85.009,84.971,0.14216157]
[1773063773542,11.76221506,85.018,84.99,11.38765532]
[1773063773745,1.48929729,85.017,84.98,11.38765532]
[1773063774133,11.76159491,85.023,85.0,11.38765532]
[1773063775058,13.2508922,85.023,85.0,11.38765532]
[1773063775351,1.48929729,85.022,84.993,11.76566299]
[1773063775553,1.48929729,85.019,84.918,47.10405692]
[1773063775857,11.76159491,85.023,84.97,11.38765532]
[1773063775858,1.48929729,85.009,84.97,11.38765532]
[1773063776554,1.48929729,84.999,84.96,11.38765532]
[1773063776756,1.48929729,84.989,84.96,11.38765532]
[1773063776954,1.48929729,84.989,84.951,11.77135451]
[1773063777135,47.05022504,85.016,84.951,11.77135451]
[1773063777136,50.73882078,85.025,84.971,1.4295685]
[1773063777333,11.38765532,85.01,84.97,11.38765532]
[1773063777562,11.38765532,85.02,84.98,11.38765532]
[1773063778354,11.38765532,85.02,84.963,0.28432314]
[1773063778355,41.16484757,85.024,84.99,11.38765532]
[1773063778853,11.38765532,85.02,84.98,11.38765532]
[1773063779042,1.48929729,85.019,84.98,11.38765532]
[1773063779835,1.48929729,85.019,84.99,11.38765532]
[1773063780541,13.2499907,85.029,85.0,11.38765532]
[1773063780741,13.2499907,85.029,85.001,11.76456747]
[1773063781052,13.2499907,85.029,84.972,1.4295685]
[1773063781053,1.48929729,85.028,84.972,1.4295685]
[1773063781239,41.16242693,85.029,84.972,1.4295685]
[1773063781240,1.48929729,85.019,84.98,11.38765532]
[1773063781752,1.48929729,85.019,84.973,11.76844409]
[1773063781753,1.48929729,85.019,84.99,11.38765532]
[1773063782553,41.16242693,85.029,85.0,11.38765532]
[1773063782750,1.48929729,85.028,84.99,11.38765532]
[1773063782946,1.48929729,85.026,84.991,11.76595168]
[1773063783144,1.48929729,85.026,84.99,23.1536273]
[1773063784261,1.48929729,85.026,84.991,1.48364465]
[1773063785160,11.76097004,85.027,84.993,1.48364465]
[1773063785347,2.39779832,85.051,85.011,1.48364465]
[1773063785547,11.58765532,85.09,85.041,1.48364465]
[1773063785743,11.38765532,85.05,85.021,1.48364465]
[1773063786052,41.14307208,85.069,85.021,1.48364465]
[1773063786237,11.58765532,85.07,85.031,1.48364465]
[1773063786439,11.75516345,85.069,85.04,11.38765532]
[1773063786636,0.2,85.07,85.051,1.48364465]
[1773063786859,0.2,85.07,85.023,0.28432314]
[1773063786860,11.58765532,85.09,85.052,1.48364465]
[1773063787051,11.75240042,85.089,85.052,1.48364465]
[1773063787438,11.75240042,85.089,85.041,0.28432314]
[1773063787439,11.75240042,85.089,85.06,11.38765532]
[1773063787645,11.75240042,85.089,85.061,1.48364465]
[1773063787940,1.40201927,85.079,85.031,1.76796779]
[1773063788136,11.38765532,85.07,85.031,1.48364465]
[1773063788352,11.38765532,85.07,85.009,3.69383402]
[1773063788353,1.40201927,85.079,85.041,1.48364465]
[1773063788941,11.38765532,85.07,85.041,1.48364465]
[1773063789340,11.75516345,85.069,85.041,1.48364465]
[1773063789539,11.75516345,85.069,85.042,11.7588956]
[1773063790141,0.2,85.09,85.051,1.48364465]
[1773063790142,11.75391993,85.078,85.051,1.48364465]
[1773063790340,11.75240042,85.089,85.061,1.48364465]
[1773063792368,41.13340148,85.089,85.052,13.2411577]
[1773063792546,41.13340148,85.089,85.053,1.48364465]
[1773063793159,11.75240042,85.089,85.06,12.87129997]
[1773063793358,11.75240042,85.089,85.052,11.75747397]
[1773063793566,1.40201927,85.088,85.053,1.48364465]
[1773063794282,1.40201927,85.069,85.031,1.48364465]
[1773063794445,1.40201927,85.049,85.01,11.38765532]
[1773063794646,11.38765532,85.07,85.03,11.38765532]
[1773063794851,1.40201927,85.074,85.04,11.38765532]
[1773063795263,1.40201927,85.088,85.06,11.38765532]
[1773063795564,1.40201927,85.099,85.07,11.38765532]
[1773063795765,1.40201927,85.142,85.08,22.77531064]
[1773063795970,1.40201927,85.142,85.12,11.38765532]
[1773063796149,1.40201927,85.166,85.13,11.38765532]
[1773063796353,1.40201927,85.181,85.15,11.38765532]
[1773063796545,1.40201927,85.181,85.16,11.38765532]
[1773063796751,7.24640654,85.228,85.129,3.69383402]
[1773063796752,1.40201927,85.197,85.151,0.28432314]
[1773063796954,1.40201927,85.189,85.15,11.38765532]
[1773063797259,1.40201927,85.179,85.15,11.38765532]
[1773063797455,1.40201927,85.177,85.138,11.74563649]
[1773063797663,1.40201927,85.177,85.15,11.38765532]
[1773063798470,11.74012068,85.178,85.14,11.38765532]
[1773063798471,1.40201927,85.169,85.14,11.38765532]
[1773063798654,1.40201927,85.169,85.13,11.38765532]
[1773063798855,1.40201927,85.159,85.12,11.38765532]
[1773063799050,1.40201927,85.172,85.14,11.38765532]
[1773063799253,1.40201927,85.169,85.13,11.38765532]
[1773063799568,3.69383402,85.195,85.119,0.92924142]
[1773063799569,1.40201927,85.181,85.15,11.38765532]
[1773063799750,11.73984503,85.18,85.15,11.38765532]
[1773063799951,1.40201927,85.179,85.14,11.38765532]
[1773063800349,1.40201927,85.179,85.15,11.38765532]
[1773063800571,1.40201927,85.179,85.141,0.28432314]
[1773063800874,1.40201927,85.205,85.17,11.38765532]
[1773063801058,41.0730631,85.214,85.131,99.84611949]
[1773063801059,1.40201927,85.189,85.151,0.28432314]
[1773063801258,1.40201927,85.189,85.15,11.38765532]
[1773063801259,1.40201927,85.179,85.141,0.28432314]
[1773063801460,1.40201927,85.179,85.15,11.38765532]
[1773063801881,1.40201927,85.177,85.141,11.74522263]
[1773063802178,5.72979527,85.18,85.142,0.28432314]
[1773063802384,5.72979527,85.18,85.141,11.74522263]
[1773063802385,29.33790222,85.214,85.171,1.48364465]
[1773063802562,29.33790222,85.214,85.18,11.38765532]
[1773063802768,11.38765532,85.21,85.171,1.48364465]
[1773063803077,11.73447235,85.219,85.18,11.38765532]
[1773063803780,41.07065324,85.219,85.18,11.38765532]
[1773063803961,41.07065324,85.219,85.161,0.14216157]
[1773063803962,11.38765532,85.2,85.161,0.14216157]
[1773063804167,41.07065324,85.219,85.155,1.48364465]
[1773063804168,1.40201927,85.201,85.17,11.38765532]
[1773063804368,11.38765532,85.21,85.17,11.38765532]
[1773063804561,1.40201927,85.209,85.17,11.38765532]
[1773063804758,11.73447235,85.219,85.181,1.48364465]
[1773063804987,1.40201927,85.22,85.19,11.38765532]
[1773063805176,1.40201927,85.228,85.19,1.48364465]
[1773063805363,1.40201927,85.228,85.19,11.38765532]
[1773063805769,1.40201927,85.228,85.19,12.87129997]
[1773063805970,11.73337088,85.227,85.19,24.60974385]
[1773063806172,11.73337088,85.227,85.2,11.38765532]
[1773063806378,11.73337088,85.227,85.191,1.76796779]
[1773063806575,41.06679808,85.227,85.191,1.76796779]
[1773063806993,1.40201927,85.226,85.19,11.38765532]
[1773063807288,1.40201927,85.226,85.181,1.48364465]
[1773063807578,11.38765532,85.22,85.181,1.62580622]
[1773063807762,11.38765532,85.22,85.169,41.09474788]
[1773063807763,11.73337088,85.227,85.191,0.14216157]
[1773063808079,1.40201927,85.217,85.18,11.38765532]
[1773063808285,1.40201927,85.209,85.17,11.38765532]
[1773063808461,1.40201927,85.209,85.166,11.74177488]
[1773063808665,1.40201927,85.209,85.17,11.38765532]